bitfinex/quotes_BTCUSD_20240827
["timestamp","ask_amount","ask_price","bid_price","bid_amount"]
[1724748598243,0.009053,62926.0,62924.0,0.158921]
[1724748598512,0.009053,62926.0,62922.0,0.476775]
[1724748598737,0.009053,62926.0,62924.0,0.158921]
[1724748599241,0.009053,62926.0,62922.0,0.317851]
[1724748599744,0.009053,62926.0,62925.0,0.006]
[1724748599972,0.009053,62926.0,62925.0,0.482757]
[1724748600197,0.009053,62926.0,62925.0,0.59247864]
[1724748600409,0.009053,62926.0,62925.0,0.90431664]
[1724748600838,0.009053,62926.0,62925.0,0.499757]
[1724748601536,0.009053,62926.0,62925.0,0.511757]
[1724748601753,0.009053,62926.0,62925.0,0.829595]
[1724748602696,0.009053,62926.0,62925.0,0.91631664]
[1724748602912,0.009053,62926.0,62925.0,0.92631664]
[1724748603359,0.009053,62926.0,62925.0,0.521757]
[1724748603806,0.009053,62926.0,62925.0,0.839595]
[1724748604025,0.009053,62926.0,62925.0,0.022]
[1724748604026,0.311669,62926.0,62925.0,0.022]
[1724748604528,0.152753,62926.0,62925.0,0.022]
[1724748606808,0.311669,62926.0,62925.0,0.022]
[1724748608186,0.152753,62926.0,62925.0,0.022]
[1724748609852,0.009053,62926.0,62925.0,0.498757]
[1724748611216,0.009053,62926.0,62925.0,0.180919]
[1724748611417,0.009053,62926.0,62925.0,0.022]
[1724748611418,0.152953,62926.0,62925.0,0.022]
[1724748611675,0.311869,62926.0,62925.0,0.022]
[1724748615809,0.629702,62926.0,62925.0,0.022]
[1724748616675,0.629702,62926.0,62925.0,0.01]
[1724748616893,0.158921,62925.0,62920.0,0.158931]
[1724748617344,0.158921,62925.0,62919.0,0.000823]
[1724748617345,0.158925,62923.0,62919.0,0.000823]
[1724748617590,0.158925,62923.0,62919.0,0.159756]
[1724748619871,0.158925,62923.0,62920.0,0.009]
[1724748620108,0.158925,62923.0,62919.0,0.159756]
[1724748620109,0.158925,62923.0,62919.0,0.168756]
[1724748620346,0.158925,62923.0,62919.0,0.179756]
[1724748620803,0.158925,62923.0,62919.0,0.170756]
[1724748622213,0.476787,62921.0,62920.0,0.009]
[1724748622451,0.539587,62921.0,62920.0,0.009]
[1724748622677,0.158931,62920.0,62919.0,0.011823]
[1724748622898,0.380658,62921.0,62919.0,0.011823]
[1724748622899,0.0628,62921.0,62919.0,0.011823]
[1724748623119,0.158931,62920.0,62919.0,0.009823]
[1724748623545,0.158931,62920.0,62919.0,0.000823]
[1724748623728,0.476794,62920.0,62919.0,0.01811951]
[1724748623980,0.558094,62920.0,62919.0,0.01811951]
[1724748624201,0.936457,62920.0,62919.0,0.013823]
[1724748624424,0.936457,62920.0,62919.0,0.000823]
[1724748624644,0.93626571,62920.0,62919.0,0.000823]
[1724748625317,0.93726571,62920.0,62919.0,0.000823]
[1724748626181,0.93726571,62920.0,62919.0,0.026823]
[1724748628433,0.02490884,62921.0,62920.0,0.794657]
[1724748628673,0.009053,62926.0,62923.0,0.158921]
[1724748628862,0.009053,62926.0,62924.0,0.158921]
[1724748629341,0.03396072,62926.0,62923.0,0.24569791]
[1724748630220,0.03396072,62926.0,62923.0,0.158923]
[1724748630691,0.03396072,62926.0,62924.0,0.158921]
[1724748631626,0.03396072,62926.0,62925.0,0.158919]
[1724748633255,0.03396072,62926.0,62925.0,0.482757]
[1724748634347,0.03396072,62926.0,62925.0,0.490757]
[1724748635222,0.03396072,62926.0,62925.0,0.172919]
[1724748635873,0.03396072,62926.0,62925.0,0.490757]
[1724748644173,0.03396072,62926.0,62925.0,0.172919]
[1724748644580,0.03396072,62926.0,62925.0,0.490757]
[1724748645676,0.03396072,62926.0,62925.0,0.172919]
[1724748653616,0.03396072,62926.0,62925.0,0.808595]
[1724748653830,0.03396072,62926.0,62925.0,0.961095]
[1724748656538,0.03396072,62926.0,62925.0,0.97022657]
[1724748657903,0.03396072,62926.0,62925.0,1.28806457]
[1724748658335,0.03396072,62926.0,62925.0,1.60590257]
[1724748658772,0.03396072,62926.0,62925.0,1.59990257]
[1724748659236,0.03396072,62926.0,62925.0,2.01599343]
[1724748659481,0.03396072,62926.0,62925.0,2.02799343]
[1724748659732,0.03396072,62926.0,62925.0,1.94450828]
[1724748659972,0.03396072,62926.0,62925.0,2.02999343]
[1724748660901,0.03396072,62926.0,62925.0,1.79889791]
[1724748661155,0.03396072,62926.0,62925.0,0.81772657]
[1724748661364,0.03396072,62926.0,62925.0,0.82772657]
[1724748662226,0.03396072,62926.0,62925.0,0.818595]
[1724748662436,0.03396072,62926.0,62925.0,0.841595]
[1724748662874,0.03396072,62926.0,62925.0,0.831595]
[1724748663989,0.03396072,62926.0,62925.0,0.845595]
[1724748667081,0.03376943,62926.0,62925.0,0.845595]
[1724748667776,0.97165143,62926.0,62925.0,0.028]
[1724748668012,1.29048443,62926.0,62925.0,0.028]
[1724748668450,1.46162211,62926.0,62925.0,0.028]
[1724748668902,1.255803,62921.0,62920.0,0.000823]
[1724748669118,1.34354814,62921.0,62920.0,0.000823]
[1724748669340,1.44354814,62921.0,62920.0,0.000823]
[1724748670199,1.356803,62921.0,62920.0,0.000823]
[1724748670886,1.357803,62921.0,62920.0,0.000823]
[1724748671574,1.40512528,62921.0,62920.0,0.000823]
[1724748671789,1.40512397,62921.0,62920.0,0.000823]
[1724748672217,1.356803,62921.0,62920.0,0.001823]
[1724748672434,1.357803,62921.0,62920.0,0.000823]
[1724748673292,1.4288417,62921.0,62920.0,0.000823]
[1724748673518,1.358803,62921.0,62920.0,0.000823]
[1724748678281,1.215503,62921.0,62920.0,0.000823]
[1724748689949,1.293603,62921.0,62920.0,0.000823]
[1724748692126,1.38040339,62921.0,62920.0,0.000823]
[1724748692347,0.897645,62921.0,62920.0,0.129423]
[1724748692583,0.579787,62921.0,62920.0,0.129423]
[1724748692794,0.578787,62921.0,62920.0,0.129423]
[1724748693420,0.002,62921.0,62920.0,0.129423]
[1724748693630,0.001,62921.0,62920.0,0.129423]
[1724748693874,0.158924,62923.0,62921.0,0.1286]
[1724748694094,0.158924,62923.0,62922.0,0.1286]
[1724748694334,0.476772,62923.0,62922.0,0.1286]
[1724748694823,0.79462,62923.0,62922.0,0.1286]
[1724748695890,0.79462,62923.0,62922.0,0.1346]
[1724748696097,0.79562,62923.0,62922.0,0.0721]
[1724748697174,0.79562,62923.0,62922.0,0.0661]
[1724748698250,0.79562,62923.0,62922.0,0.0621]
[1724748698670,0.79662,62923.0,62922.0,0.0621]
[1724748699106,0.79562,62923.0,62922.0,0.0631]
[1724748699534,0.79562,62923.0,62922.0,0.0661]
[1724748699749,0.79562,62923.0,62922.0,0.0701]
[1724748700399,0.79562,62923.0,62922.0,0.0651]
[1724748700830,0.79562,62923.0,62922.0,0.0691]
[1724748701940,0.79562,62923.0,62922.0,0.0661]
[1724748702397,0.79562,62923.0,62922.0,0.0691]
[1724748703911,0.79562,62923.0,62922.0,0.007]
[1724748710240,0.79562,62923.0,62922.0,0.0735]
[1724748710924,0.79542873,62923.0,62922.0,0.0735]
[1724748712051,0.79542873,62923.0,62922.0,0.007]
[1724748715373,0.79542873,62923.0,62922.0,0.007823]
[1724748724277,0.94152873,62923.0,62922.0,0.007823]
[1724748724520,1.3461577,62923.0,62922.0,0.007823]
[1724748724747,1.3460827,62923.0,62922.0,0.007823]
[1724748725178,1.25930173,62923.0,62922.0,0.007823]
[1724748725391,1.19302673,62923.0,62922.0,0.007823]
[1724748727620,1.19393203,62923.0,62922.0,0.007823]
[1724748737433,1.24138878,62923.0,62922.0,0.007823]
[1724748738533,1.26511715,62923.0,62922.0,0.007823]
[1724748743576,1.19393203,62923.0,62922.0,0.007823]
[1724748743809,1.3125739,62923.0,62922.0,0.007823]
[1724748744704,1.19393203,62923.0,62922.0,0.007823]
[1724748744953,0.79588403,62923.0,62922.0,0.007823]
[1724748745173,1.11373203,62923.0,62922.0,0.007823]
[1724748746352,1.19413203,62923.0,62922.0,0.007823]
[1724748746589,1.25523203,62923.0,62922.0,0.007823]
[1724748747486,1.3738739,62923.0,62922.0,0.007823]
[1724748747814,1.25523203,62923.0,62922.0,0.007823]
[1724748750257,1.3738739,62923.0,62922.0,0.007823]
[1724748752619,1.25523203,62923.0,62922.0,0.007823]
[1724748752849,1.37402963,62923.0,62922.0,0.007823]
[1724748754608,1.69187763,62923.0,62922.0,0.007823]
[1724748754820,1.57308003,62923.0,62922.0,0.007823]
[1724748755041,1.71563715,62923.0,62922.0,0.007823]
[1724748755305,1.57308003,62923.0,62922.0,0.007823]
[1724748755758,1.57308003,62923.0,62922.0,0.003823]
[1724748755991,1.57408003,62923.0,62922.0,0.003823]
[1724748756207,1.57408003,62923.0,62922.0,0.000823]
[1724748757526,1.4157973,62923.0,62922.0,0.000823]
[1724748757737,1.5747213,62923.0,62922.0,0.000823]
[1724748757950,1.5757213,62923.0,62922.0,0.000823]
[1724748758135,1.5747213,62923.0,62922.0,0.000823]
[1724748758611,1.5767213,62923.0,62922.0,0.000823]
[1724748760408,1.69544564,62923.0,62922.0,0.000823]
[1724748762354,1.6767213,62923.0,62922.0,0.000823]
[1724748763712,2.01880478,62923.0,62922.0,0.000823]
[1724748763977,2.16130693,62923.0,62922.0,0.000823]
[1724748764197,2.01880478,62923.0,62922.0,0.000823]
[1724748764698,2.0186135,62923.0,62922.0,0.000823]
[1724748765575,2.16093688,62923.0,62922.0,0.000823]
[1724748766687,2.0186135,62923.0,62922.0,0.000823]
[1724748769525,2.7186135,62923.0,62922.0,0.000823]
[1724748771897,2.80539447,62923.0,62922.0,0.000823]
[1724748772531,2.10539447,62923.0,62922.0,0.000823]
[1724748776955,2.81176747,62923.0,62922.0,0.000823]
[1724748781731,3.29721547,62923.0,62922.0,0.000823]
[1724748782151,2.59721547,62923.0,62922.0,0.000823]
[1724748785357,2.75706792,62923.0,62922.0,0.000823]
[1724748786473,3.45706792,62923.0,62922.0,0.000823]
[1724748790152,2.7019865,62923.0,62922.0,0.000823]
[1724748790411,2.78876747,62923.0,62922.0,0.000823]
[1724748791687,2.08876747,62923.0,62922.0,0.000823]
[1724748791891,2.0249865,62923.0,62922.0,0.000823]
[1724748792097,2.11176747,62923.0,62922.0,0.000823]
[1724748796617,2.81176747,62923.0,62922.0,0.000823]
[1724748799665,2.97161992,62923.0,62922.0,0.000823]
[1724748799935,2.97184414,62923.0,62922.0,0.000823]
[1724748801848,2.27184414,62923.0,62922.0,0.000823]
[1724748803955,2.11176747,62923.0,62922.0,0.000823]
[1724748804571,2.13668629,62923.0,62922.0,0.000823]
[1724748804793,2.83668629,62923.0,62922.0,0.000823]
[1724748807368,2.81176747,62923.0,62922.0,0.000823]
[1724748809813,2.11176747,62923.0,62922.0,0.000823]
[1724748810688,2.0249865,62923.0,62922.0,0.000823]
[1724748810903,2.0249865,62923.0,62922.0,0.133023]
[1724748810904,1.70176586,62923.0,62922.0,0.133023]
[1724748811117,1.62818399,62923.0,62922.0,0.133023]
[1724748811575,1.62181099,62923.0,62922.0,0.133023]
[1724748813776,1.53503002,62923.0,62922.0,0.133023]
[1724748814007,1.62181099,62923.0,62922.0,0.133023]
[1724748814674,1.76432324,62923.0,62922.0,0.133023]
[1724748817247,1.62181099,62923.0,62922.0,0.133023]
[1724748819447,1.62161971,62923.0,62922.0,0.133023]
[1724748819895,1.21699074,62923.0,62922.0,0.133023]
[1724748823096,1.21599074,62923.0,62922.0,0.133023]
[1724748823333,1.21899074,62923.0,62922.0,0.133023]
[1724748823763,1.21499074,62923.0,62922.0,0.133023]
[1724748824264,1.21799074,62923.0,62922.0,0.133023]
[1724748828355,1.33662196,62923.0,62922.0,0.133023]
[1724748828551,1.21799074,62923.0,62922.0,0.133023]
[1724748829042,1.33662146,62923.0,62922.0,0.133023]
[1724748831742,1.33662146,62923.0,62922.0,0.000823]
[1724748831974,1.21799074,62923.0,62922.0,0.000823]
[1724748840724,1.30477171,62923.0,62922.0,0.000823]
[1724748843938,0.48229474,62923.0,62922.0,0.000823]
[1724748844154,0.91887417,62923.0,62922.0,0.000823]
[1724748844419,0.80014274,62923.0,62922.0,0.000823]
[1724748844863,0.79714274,62923.0,62922.0,0.000823]
[1724748845079,0.79614274,62923.0,62922.0,0.000823]
[1724748845298,0.80014274,62923.0,62922.0,0.000823]
[1724748845517,0.90014274,62923.0,62922.0,0.000823]
[1724748845734,0.89714274,62923.0,62922.0,0.000823]
[1724748845969,0.89714274,62923.0,62922.0,0.004823]
[1724748846204,0.89714274,62923.0,62922.0,0.006823]
[1724748847330,0.1608293,62923.0,62922.0,0.006823]
[1724748847546,0.0019053,62923.0,62922.0,0.006823]
[1724748848445,0.1608293,62923.0,62922.0,0.006823]
[1724748848881,0.0019053,62923.0,62922.0,0.006823]
[1724748850447,0.0019053,62923.0,62922.0,0.165749]
[1724748851119,0.0019053,62923.0,62922.0,0.163749]
[1724748851343,0.0009053,62923.0,62922.0,0.163749]
[1724748851556,0.0009053,62923.0,62922.0,0.010823]
[1724748851816,0.0009053,62923.0,62922.0,1.123308]
[1724748852070,0.0009053,62923.0,62922.0,1.12648624]
[1724748852760,0.0009053,62923.0,62922.0,1.14948624]
[1724748853005,0.0009053,62923.0,62922.0,1.119308]
[1724748853234,0.0009053,62923.0,62922.0,1.20608897]
[1724748853457,0.0009053,62923.0,62922.0,1.20008897]
[1724748854394,0.0009053,62923.0,62922.0,1.21408897]
[1724748855031,0.0009053,62923.0,62922.0,1.20008897]
[1724748855520,0.0009053,62923.0,62922.0,1.21408897]
[1724748857589,0.0009053,62923.0,62922.0,1.22808897]
[1724748857821,0.0009053,62923.0,62922.0,1.21408897]
[1724748858043,0.0009053,62923.0,62922.0,1.20008897]
[1724748858478,0.0009053,62923.0,62922.0,1.21408897]
[1724748858696,0.0009053,62923.0,62922.0,1.22808897]
[1724748859405,0.0009053,62923.0,62922.0,1.25108897]
[1724748860971,0.0009053,62923.0,62922.0,1.113308]
[1724748861191,0.0009053,62923.0,62922.0,0.88223597]
[1724748861406,0.0009053,62923.0,62922.0,0.91023597]
[1724748869391,0.0009053,62923.0,62922.0,0.92753055]
[1724748875766,0.0009053,62923.0,62922.0,0.91023597]
[1724748876008,0.0009053,62923.0,62922.0,0.92753048]
[1724748883082,0.0009053,62923.0,62922.0,0.92753046]
[1724748886390,0.0009053,62923.0,62922.0,0.94245704]
[1724748886597,0.0009053,62923.0,62922.0,0.92753046]
[1724748889370,0.0009053,62923.0,62922.0,0.94245723]
[1724748893330,0.0009053,62923.0,62922.0,0.99009826]
[1724748893800,0.0009053,62923.0,62922.0,0.99009782]
[1724748894479,0.0009053,62923.0,62922.0,1.01391834]
[1724748894698,0.0009053,62923.0,62922.0,1.01391827]
[1724748895151,0.0009053,62923.0,62922.0,1.01400054]
[1724748895368,0.0009053,62923.0,62922.0,1.29509977]
[1724748895872,0.0009053,62923.0,62922.0,2.29509977]
[1724748896347,0.0009053,62923.0,62922.0,2.39051788]
[1724748897042,0.0009053,62923.0,62922.0,2.3755912]
[1724748897279,0.0009053,62923.0,62922.0,2.39051788]
[1724748897524,0.0009053,62923.0,62922.0,2.41437241]
[1724748898207,0.0771,62924.0,62923.0,1.7937147]
[1724748898441,0.0771,62924.0,62923.0,2.25914559]
[1724748899642,0.0771,62924.0,62923.0,2.28714559]
[1724748900095,0.0771,62924.0,62923.0,2.62799359]
[1724748901039,0.0771,62924.0,62923.0,2.53249982]
[1724748901264,0.1423,62924.0,62923.0,2.53249982]
[1724748901485,0.1423,62924.0,62923.0,2.62799194]
[1724748902834,0.1423,62924.0,62923.0,2.61069787]
[1724748903063,0.1423,62924.0,62923.0,2.62799194]
[1724748903542,0.1423,62924.0,62923.0,2.60499194]
[1724748903543,0.142125,62924.0,62923.0,2.60499194]
[1724748903806,0.142125,62924.0,62923.0,2.60499231]
[1724748906143,0.142125,62924.0,62923.0,2.58769824]
[1724748906382,0.142125,62924.0,62923.0,2.60499232]
[1724748908508,0.142125,62924.0,62923.0,2.37392529]
[1724748911514,0.142125,62924.0,62923.0,2.35663121]
[1724748913061,0.142125,62924.0,62923.0,2.37392531]
[1724748913474,0.142125,62924.0,62923.0,2.27843346]
[1724748913680,0.142125,62924.0,62923.0,2.37393046]
[1724748914415,0.142125,62924.0,62923.0,2.35663636]
[1724748914678,0.142125,62924.0,62923.0,2.37475346]
[1724748914907,0.1430303,62924.0,62923.0,2.39204756]
[1724748915793,0.1430303,62924.0,62923.0,2.37475346]
[1724748916046,0.1430303,62924.0,62923.0,2.39204756]
[1724748916502,0.1430303,62924.0,62923.0,2.37475346]
[1724748916972,0.1430303,62924.0,62923.0,1.59360905]
[1724748917217,0.1430303,62924.0,62923.0,1.5219838]
[1724748917437,0.1430303,62924.0,62923.0,1.2041358]
[1724748917899,0.1430303,62924.0,62923.0,1.33866732]
[1724748918119,0.1430303,62924.0,62923.0,1.29091677]
[1724748918333,0.1430303,62924.0,62923.0,1.0452118]
[1724748918820,0.1430303,62924.0,62923.0,1.29091677]
[1724748924333,0.1430303,62924.0,62923.0,1.2041358]
[1724748924757,0.1430303,62924.0,62923.0,1.1868417]
[1724748925427,0.1430303,62924.0,62923.0,1.5046897]
[1724748925872,0.1430303,62924.0,62923.0,1.1868417]
[1724748926261,0.1430303,62924.0,62923.0,1.5046897]
[1724748926487,0.1430303,62924.0,62923.0,1.1868417]
[1724748930379,0.1430303,62924.0,62923.0,1.5046897]
[1724748930590,0.1430303,62924.0,62923.0,1.1868417]
[1724748931515,0.1430303,62924.0,62923.0,1.5046897]
[1724748932676,0.0764053,62924.0,62923.0,2.1403857]
[1724748932907,0.00071403,62924.0,62923.0,2.1403857]
[1724748933358,0.00071403,62924.0,62923.0,2.18808125]
[1724748934044,0.00071403,62924.0,62923.0,2.1403857]
[1724748934497,0.02562109,62924.0,62923.0,2.18808075]
[1724748934726,0.02562109,62924.0,62923.0,2.1403857]
[1724748940395,0.10132109,62924.0,62923.0,2.1403857]
[1724748942679,0.10132109,62924.0,62923.0,1.8225377]
[1724748942905,0.16482109,62924.0,62923.0,1.8225377]
[1724748943588,0.32374209,62924.0,62923.0,1.0279177]
[1724748943842,0.16482109,62924.0,62923.0,1.0279177]
[1724748949072,0.16482109,62924.0,62923.0,1.1868417]
[1724748949332,0.16482109,62924.0,62923.0,1.0279177]
[1724748951077,0.16482109,62924.0,62923.0,1.1868417]
[1724748952623,0.10132109,62924.0,62923.0,1.8225377]
[1724748953080,0.10114609,62924.0,62923.0,1.8225377]
[1724748953979,0.16164609,62924.0,62923.0,1.8225377]
[1724748960615,0.16164609,62924.0,62923.0,1.5046897]
[1724748962156,0.16164609,62924.0,62923.0,1.8225377]
[1724748962345,0.10114609,62924.0,62923.0,1.8225377]
[1724748964951,0.10114609,62924.0,62923.0,2.18810164]
[1724748964952,0.02544609,62924.0,62923.0,2.18810164]
[1724748965172,0.02544609,62924.0,62923.0,2.2070857]
[1724748965415,0.02544609,62924.0,62923.0,2.65516247]
[1724748965660,0.02544609,62924.0,62923.0,2.21902674]
[1724748965886,0.02544609,62924.0,62923.0,2.66708671]
[1724748966127,0.02544609,62924.0,62923.0,2.63129101]
[1724748966353,0.02544609,62924.0,62923.0,2.18809802]
[1724748966809,0.02544609,62924.0,62923.0,2.1403857]
[1724748967268,0.02544609,62924.0,62923.0,2.18809728]
[1724748967714,0.02544609,62924.0,62923.0,2.1403857]
[1724748967928,0.02544609,62924.0,62923.0,2.18809728]
[1724748968143,0.16514609,62924.0,62923.0,1.90931867]
[1724748968592,0.16514609,62924.0,62923.0,1.8225377]
[1724748968817,0.16514609,62924.0,62923.0,1.90931867]
[1724748971546,0.16514609,62924.0,62923.0,1.8225377]
[1724748971751,0.16514609,62924.0,62923.0,1.90931867]
[1724748975525,0.16514609,62924.0,62923.0,1.59147067]
[1724748976166,0.16514609,62924.0,62923.0,1.63919065]
[1724748976374,0.16514609,62924.0,62923.0,1.6391887]
[1724748976606,0.16514609,62924.0,62923.0,1.59147067]
[1724748977063,0.16514609,62924.0,62923.0,1.63918882]
[1724748977279,0.16514609,62924.0,62923.0,1.59147067]
[1724748977504,0.16514609,62924.0,62923.0,1.66305064]
[1724748977786,0.16514609,62924.0,62923.0,2.01569417]
[1724748977995,0.16514609,62924.0,62923.0,1.94410606]
[1724748978207,0.10104609,62924.0,62923.0,1.59147067]
[1724748978634,0.10104609,62924.0,62923.0,1.9570339]
[1724748978886,0.02544609,62924.0,62923.0,1.59147067]
[1724748979107,0.02544609,62924.0,62923.0,1.65627067]
[1724748979327,0.02544609,62924.0,62923.0,1.98089245]
[1724748979549,0.02544609,62924.0,62923.0,1.90931867]
[1724748979769,0.02544609,62924.0,62923.0,2.26196559]
[1724748979994,0.02544609,62924.0,62923.0,2.36934659]
[1724748980215,0.02544609,62924.0,62923.0,2.26195537]
[1724748980427,0.02544609,62924.0,62923.0,2.35738468]
[1724748980646,0.02544609,62924.0,62923.0,2.36932569]
[1724748980866,0.02544609,62924.0,62923.0,2.35738468]
[1724748981082,0.02544609,62924.0,62923.0,2.36932565]
[1724748981296,0.02544609,62924.0,62923.0,2.26195537]
[1724748981532,0.02544609,62924.0,62923.0,2.65136913]
[1724748981750,0.02544609,62924.0,62923.0,2.36931475]
[1724748982176,0.02544609,62924.0,62923.0,2.34546063]
[1724748982385,0.02544609,62924.0,62923.0,2.33351982]
[1724748983057,0.02544609,62924.0,62923.0,1.90931867]
[1724748984372,0.02544609,62924.0,62923.0,1.98088312]
[1724748984590,0.02544609,62924.0,62923.0,1.90931867]
[1724748985454,0.02544609,62924.0,62923.0,1.95702613]
[1724748985663,0.02544609,62924.0,62923.0,1.98088312]
[1724748985866,0.02544609,62924.0,62923.0,1.90931867]
[1724748986080,0.02544609,62924.0,62923.0,2.33352181]
[1724748986304,0.02544609,62924.0,62923.0,2.26195736]
[1724748986526,0.02544609,62924.0,62923.0,1.98087532]
[1724748986787,0.02544609,62924.0,62923.0,2.65136224]
[1724748987000,0.02525482,62924.0,62923.0,1.98087532]
[1724748987247,0.02525482,62924.0,62923.0,2.26195983]
[1724748987679,0.02525482,62924.0,62923.0,2.57980783]
[1724748987894,0.02525482,62924.0,62923.0,2.26195983]
[1724748988557,0.02525482,62924.0,62923.0,2.63980783]
[1724748989602,0.02525482,62924.0,62923.0,2.57980783]
[1724748989819,0.02525482,62924.0,62923.0,2.57979833]
[1724748993530,0.10305482,62924.0,62923.0,2.59173929]
[1724748994682,0.10305482,62924.0,62923.0,2.23910763]
[1724748994889,0.10305482,62924.0,62923.0,2.5917393]
[1724748995742,0.10305482,62924.0,62923.0,2.27765582]
[1724748995979,0.10305482,62924.0,62923.0,2.2738913]
[1724748996197,0.10305482,62924.0,62923.0,2.5917393]
[1724748996409,0.10305482,62924.0,62923.0,2.6632782]
[1724748996832,0.10305482,62924.0,62923.0,2.3454302]
[1724748997530,0.10305482,62924.0,62923.0,2.33348924]
[1724748997949,0.10305482,62924.0,62923.0,2.3454302]
[1724748998154,0.10305482,62924.0,62923.0,2.33348924]
[1724748999754,0.10305482,62924.0,62923.0,2.57979834]
[1724749000234,0.02525482,62924.0,62923.0,2.57979834]
[1724749000452,0.02525482,62924.0,62923.0,2.59472449]
[1724749000921,0.02525482,62924.0,62923.0,2.57979834]
[1724749001099,0.02525482,62924.0,62923.0,2.59472449]
[1724749001351,0.02525482,62924.0,62923.0,2.66072449]
[1724749002498,0.02525482,62924.0,62923.0,2.68372449]
[1724749002730,0.02525482,62924.0,62923.0,2.79340831]
[1724749002951,0.02525482,62924.0,62923.0,2.89340831]
[1724749003176,0.02525482,62924.0,62923.0,3.21125631]
[1724749003711,0.02525482,62924.0,62923.0,2.85460226]
[1724749003952,0.02525482,62924.0,62923.0,2.84060193]
[1724749004175,0.02525482,62924.0,62923.0,3.1972541]
[1724749004412,0.02525482,62924.0,62923.0,3.2112541]
[1724749004640,0.02525482,62924.0,62923.0,3.21121764]
[1724749005080,0.02525482,62924.0,62923.0,3.19721764]
[1724749005542,0.02525482,62924.0,62923.0,3.18321764]
[1724749006493,0.02525482,62924.0,62923.0,3.19721761]
[1724749007409,0.02525482,62924.0,62923.0,3.21121761]
[1724749007654,0.02525482,62924.0,62923.0,3.19721761]
[1724749008111,0.02525482,62924.0,62923.0,3.21121761]
[1724749008347,0.02525482,62924.0,62923.0,3.19721761]
[1724749009253,0.02525482,62924.0,62923.0,3.21121761]
[1724749009487,0.02525482,62924.0,62923.0,3.19721761]
[1724749009711,0.02525482,62924.0,62923.0,3.192114]
[1724749009990,0.02525482,62924.0,62923.0,3.21121757]
[1724749013015,0.02525482,62924.0,62923.0,3.15330988]
[1724749013237,0.02525482,62924.0,62923.0,3.21121757]
[1724749013474,0.02525482,62924.0,62923.0,3.17241345]
[1724749013708,0.02525482,62924.0,62923.0,3.21121757]
[1724749013950,0.02525482,62924.0,62923.0,2.6508886]
[1724749014171,0.02525482,62924.0,62923.0,2.69468654]
[1724749014384,0.02525482,62924.0,62923.0,2.79002886]
[1724749015022,0.02525482,62924.0,62923.0,2.77602886]
[1724749015492,0.02525482,62924.0,62923.0,2.79002886]
[1724749015735,0.02525482,62924.0,62923.0,2.77602886]
[1724749015951,0.02525482,62924.0,62923.0,2.79002886]
[1724749016391,0.02525482,62924.0,62923.0,2.77602886]
[1724749016867,0.02525482,62924.0,62923.0,2.79002886]
[1724749017534,0.02525482,62924.0,62923.0,2.8138585]
[1724749017756,0.02525482,62924.0,62923.0,2.69470405]
[1724749018196,0.02525482,62924.0,62923.0,2.60792308]
[1724749018416,0.02525482,62924.0,62923.0,2.8138585]
[1724749018635,0.02525482,62924.0,62923.0,2.69470405]
[1724749018878,0.02525482,62924.0,62923.0,2.79005232]
[1724749019357,0.02525482,62924.0,62923.0,2.69471012]
[1724749019589,0.02525482,62924.0,62923.0,2.69471112]
[1724749021275,0.02525482,62924.0,62923.0,2.81390542]
[1724749021921,0.02525482,62924.0,62923.0,2.81390543]
[1724749022160,0.02525482,62924.0,62923.0,3.10553769]
[1724749022371,0.02525482,62924.0,62923.0,3.1443436]
[1724749025161,0.02525482,62924.0,62923.0,3.08643346]
[1724749025381,0.02525482,62924.0,62923.0,3.14434149]
[1724749025821,0.02525482,62924.0,62923.0,3.21104149]
[1724749026045,0.02525482,62924.0,62923.0,3.70466399]
[1724749026262,0.02525482,62924.0,62923.0,3.21104149]
[1724749028505,0.02525482,62924.0,62923.0,3.17223714]
[1724749028737,0.02525482,62924.0,62923.0,3.21104149]
[1724749029171,0.02525482,62924.0,62923.0,3.14434149]
[1724749030704,0.02525482,62924.0,62923.0,3.84770018]
[1724749031611,0.02525482,62924.0,62923.0,3.8327748]
[1724749031923,0.02525482,62924.0,62923.0,3.84769916]
[1724749032121,0.02525482,62924.0,62923.0,3.84769866]
[1724749032542,0.02525482,62924.0,62923.0,3.84769044]
[1724749032985,0.00034776,62924.0,62923.0,3.84769044]
[1724749033409,0.02525096,62924.0,62923.0,3.84769044]
[1724749033857,0.02525096,62924.0,62923.0,3.80888711]
[1724749034046,0.02525096,62924.0,62923.0,3.84769024]
[1724749034336,0.02525096,62924.0,62923.0,3.83369024]
[1724749035003,0.02525096,62924.0,62923.0,3.83369014]
[1724749035449,0.02525096,62924.0,62923.0,3.81969014]
[1724749035676,0.02525096,62924.0,62923.0,3.83369014]
[1724749035881,0.02525096,62924.0,62923.0,3.84769014]
[1724749036932,0.02525096,62924.0,62923.0,3.86498181]
[1724749037551,0.00034776,62924.0,62923.0,3.86497912]
[1724749038026,0.0252519,62924.0,62923.0,3.86497912]
[1724749039882,0.00034776,62924.0,62923.0,3.86497912]
[1724749040329,0.00034776,62924.0,62923.0,3.72191949]
[1724749041755,0.02525108,62924.0,62923.0,3.72191949]
[1724749042223,0.02525108,62924.0,62923.0,3.66401328]
[1724749042439,0.02525108,62924.0,62923.0,3.72191949]
[1724749042670,0.02525108,62924.0,62923.0,3.66582469]
[1724749042895,0.02525108,62924.0,62923.0,3.63134064]
[1724749043095,0.02525108,62924.0,62923.0,3.65521949]
[1724749044258,0.10125108,62924.0,62923.0,3.18479052]
[1724749044490,0.10125108,62924.0,62923.0,3.41466422]
[1724749044491,0.16435108,62924.0,62923.0,3.41466422]
[1724749044725,0.16435108,62924.0,62923.0,3.27157149]
[1724749044937,0.16435108,62924.0,62923.0,2.77795077]
[1724749045605,0.16435108,62924.0,62923.0,3.27158527]
[1724749046273,0.16435108,62924.0,62923.0,3.414678]
[1724749048868,0.16435108,62924.0,62923.0,3.32789703]
[1724749049088,0.16435108,62924.0,62923.0,2.73496884]
[1724749049568,0.16435108,62924.0,62923.0,2.83126705]
[1724749049795,0.16435108,62924.0,62923.0,2.8172592]
[1724749050031,0.16435108,62924.0,62923.0,2.69796884]
[1724749050988,0.16435108,62924.0,62923.0,2.68396884]
[1724749051217,0.16435108,62924.0,62923.0,2.71196884]
[1724749051902,0.16435108,62924.0,62923.0,2.67975289]
[1724749052190,0.16435108,62924.0,62923.0,2.71197154]
[1724749052387,0.16435108,62924.0,62923.0,2.69797131]
[1724749052628,0.16435108,62924.0,62923.0,2.73497131]
[1724749055263,0.16435108,62924.0,62923.0,2.73497145]
[1724749056342,0.10125108,62924.0,62923.0,2.90194336]
[1724749056797,0.02525108,62924.0,62923.0,2.75885063]